[Event "FIDE WCCC U8 2018"]
[Site "Santiago de Compostela"]
[Date "2018.11.04"]
[Round "1"]
[White "Finek, Vaclav"]
[Black "Tregubenko, Nikolay"]
[Result "1-0"]
[ECO "D30"]
[WhiteElo "1942"]
[BlackElo "1138"]
[Annotator "NA RC"]
[PlyCount "123"]
[EventDate "2018.11.04"]
[EventType "swiss"]
[EventCountry "ESP"]
[SourceTitle "playchess.com"]
[Source "ChessBase"]
[SourceQuality "1"]
[TimeControl "40/5400+30:1800+30"]

{[%evp 21,122,28,32767,63,32767,37,32767,3,89,35,168,0,32767,32767,78,86,274,266,270,32767,32767,282,293,32767,32767,32767,32767,32767,32767,32767,333,32767,438,32767,822,870,820,875,882,964,1342,1412,1443,1022,1350,874,1044,781,733,32767,32767,796,842,842,759,828,812,1263,956,1294,883,1642,1033,2862,1647,2629,3003,5608,5872,29979,5608,29961,29982,29984,29982,29984,29983,29986,29986,29987,29987,29989,29990,29991,29991,29992,12850,29992,29992,29992,29992,29993,29993,29993,12850,29995,29995,29996,12850,29997,29997,29998,29999]} 1. d4 {[%emt 0:00:00]} d5 {[%emt 0:00:00]} 2. c4 {[%emt 0:00:00]} e6 {[%emt 0:00:00]} 3. Nf3 {[%emt 0:00:11]} Nf6 {[%emt 0:00:00]} 4. e3 {[%emt 0:00:08]} c6 {[%emt 0:00:00]} 5. Bd3 {[%emt 0:00:14]} Bd6 {[%emt 0:00:07]} 6. O-O {[%emt 0:00:09]} Nbd7 {[%emt 0:00:08]} 7. Nc3 {[%emt 0:00:11]} O-O {[%emt 0:00:08]} 8. e4 {[%emt 0:01:28]} dxe4 {[%emt 0:00:28]} 9. Nxe4 {[%emt 0:00:12]} Nxe4 {[%emt 0:00:11]} 10. Bxe4 {[%emt 0:00:14]} e5 {[%emt 0:00:28]} 11. Bc2 {[%emt 0:07:12]} exd4 {[%emt 0:01:28] D46: Semi-Slav: 5 e3 Nbd7 6 Bd3, Black avoids the Meran} 12. Qxd4 {[%emt 0:00:34] LiveBook: 4 Games} Bc5 {[%emt 0:01:55]} (12... Be7 13. Re1 Nc5 14. Qc3 Bf6 15. Ne5 Nd7 16. Qd3 g6 17. Ng4 Bg7 18. Qd6 Nb6 {½-½ (34) Krasenkow,M (2652)-Ter Sahakyan,S (2513) Rijeka 2010}) 13. Qc3 {[%emt 0:05:30]} Re8 $146 {[%emt 0:01:22]} ({Predecessor:} 13... Qf6 14. Qd3 Qg6 15. Qc3 Qf6 16. Qd3 Qg6 17. Qd2 Qd6 18. Rd1 Qxd2 19. Bxd2 {1-0 (59) Werle,J (2551)-Kroeze,F (2445) Hilversum 2006}) 14. Bg5 {[%emt 0:02:15]} f6 {[%emt 0:01:28]} (14... Qb6 $11 {keeps the balance.}) 15. Bf4 {[%emt 0:11:06]} Nf8 {[%emt 0:02:26] [#]} (15... Qb6 $16) 16. Bg3 {[%emt 0:11:36]} ({White should try} 16. b4 $1 $16 {[%cal Rb4c5]} Bb6 17. Rad1 (17. c5 Bc7 $16)) 16... Ne6 {[%emt 0:01:16]} 17. Rad1 {[%emt 0:01:49]} Qb6 {[%emt 0:00:40]} 18. a3 {[%emt 0:03:37]} Rd8 $2 {[%emt 0:02:17]} (18... a5 $16) 19. Rxd8+ {[%emt 0:00:48]} Qxd8 {[%emt 0:00:20]} 20. Rd1 {[%emt 0:00:10]} Qf8 {[%emt 0:01:53]} 21. b4 {[%emt 0:01:00]} Be7 {[%emt 0:01:32]} 22. c5 {[%emt 0:02:52]} a5 {[%emt 0:02:00]} 23. Bb3 {[%emt 0:04:46]} Kh8 {[%emt 0:00:46]} 24. h3 {[%emt 0:03:28]} axb4 {[%emt 0:03:28]} 25. axb4 {[%emt 0:00:26]} Ra3 {[%emt 0:02:12]} 26. Qb2 {[%emt 0:00:26]} Ra8 {[%emt 0:00:43]} 27. Re1 {[%emt 0:03:35]} Nd8 $2 {[%emt 0:01:19]} (27... Nxc5 28. bxc5 Bxc5) 28. Qe2 {[%emt 0:00:42]} Ne6 {[%emt 0:06:35]} 29. Bxe6 {[%emt 0:00:33]} Bxe6 {[%emt 0:00:05]} 30. Qxe6 {[%emt 0:00:14]} Bd8 {[%emt 0:01:14]} 31. Bd6 {[%emt 0:00:22]} Qg8 {[%emt 0:00:38]} 32. Qe8 {[%emt 0:00:35]} h6 {[%emt 0:01:18]} 33. g3 {[%emt 0:02:08]} Kh7 {[%emt 0:01:09]} 34. Qxg8+ {[%emt 0:00:12]} Kxg8 35. Re8+ Kf7 {[%emt 0:01:07]} 36. Rf8+ {[%emt 0:00:56]} Ke6 {[%emt 0:00:31]} 37. Kg2 {[%emt 0:00:15]} g6 {[%emt 0:03:52] [#]} 38. Bc7 $1 {[%emt 0:01:26]} Ke7 {[%emt 0:00:39]} 39. Rxd8 {[%emt 0:00:10]} Rxd8 {[%emt 0:00:07]} 40. Bxd8+ {[%emt 0:00:00]} Kxd8 {[%emt 0:00:00]} 41. Nh4 {[%emt 0:01:01]} g5 {[%emt 0:01:41]} 42. Nf5 {[%emt 0:00:11]} h5 {[%emt 0:00:23]} 43. Nd6 {[%emt 0:00:02]} Kc7 {[%emt 0:00:23]} 44. Ne8+ {[%emt 0:00:02]} Kd7 {[%emt 0:00:20]} 45. Nxf6+ {[%emt 0:00:03]} Ke6 {[%emt 0:00:05]} 46. Nxh5 {[%emt 0:00:15]} Kd5 {[%emt 0:00:10]} 47. f4 {[%emt 0:00:22]} gxf4 {[%emt 0:00:49]} 48. gxf4 {[%emt 0:00:08]} Kc4 {[%emt 0:00:31]} 49. f5 {[%emt 0:00:06]} Kxb4 {[%emt 0:00:05]} 50. f6 {[%emt 0:00:13]} Kxc5 {[%emt 0:00:11]} 51. f7 {[%emt 0:00:06]} b5 {[%emt 0:00:04]} 52. f8=Q+ {[%emt 0:00:08]} Kc4 {[%emt 0:00:14]} 53. Kf3 {[%emt 0:00:22]} b4 {[%emt 0:00:13]} 54. Ke4 {[%emt 0:00:14]} b3 {[%emt 0:00:06]} 55. Qd6 {[%emt 0:00:21]} b2 {[%emt 0:01:05]} 56. Qd3+ {[%emt 0:00:16]} Kb4 {[%emt 0:00:17]} 57. Nf4 {[%emt 0:00:29]} Ka4 {[%emt 0:00:39]} 58. Kd4 {[%emt 0:00:31]} Kb4 {[%emt 0:00:26]} 59. Qc3+ {[%emt 0:00:23]} Kb5 {[%emt 0:00:16]} 60. Qxb2+ {[%emt 0:00:09]} Ka6 {[%emt 0:00:06]} 61. Kc5 {[%emt 0:00:26]} Ka5 {[%emt 0:00:33]} 62. Qa3# 1-0

[Event "FIDE WCCC U8 2018"]
[Site "Santiago de Compostela"]
[Date "2018.11.04"]
[Round "1"]
[White "Nurgaliyev, Sauat"]
[Black "Samatthanan, Theerath"]
[Result "1-0"]
[ECO "B76"]
[WhiteElo "1764"]
[BlackElo "1133"]
[Annotator "NA RC"]
[PlyCount "47"]
[EventDate "2018.11.04"]
[EventType "swiss"]
[EventCountry "ESP"]
[SourceTitle "playchess.com"]
[Source "ChessBase"]
[SourceQuality "1"]
[TimeControl "40/5400+30:1800+30"]

1. e4 {[%emt 0:01:00]} c5 {[%emt 0:00:00]} 2. Nf3 {[%emt 0:00:17]} d6 {[%emt 0:00:01]} 3. d4 {[%emt 0:00:36]} cxd4 {[%emt 0:00:13]} 4. Nxd4 {[%emt 0:00:13]} Nf6 {[%emt 0:00:12]} 5. Nc3 {[%emt 0:00:05]} g6 {[%emt 0:00:17]} 6. f3 {[%emt 0:00:19]} Bg7 {[%emt 0:00:11]} 7. Be3 {[%emt 0:00:18]} O-O {[%emt 0:00:14]} 8. Qd2 {[%emt 0:00:04]} Nc6 {[%emt 0:00:11]} 9. O-O-O {[%emt 0:00:15]} Bd7 {[%emt 0:00:15]} 10. g4 {[%emt 0:00:43]} Ne5 {[%emt 0:00:34]} 11. h4 {[%emt 0:02:28]} h5 {[%emt 0:15:32]} 12. gxh5 {[%emt 0:00:30]} Nxh5 {[%emt 0:00:30]} 13. Rg1 {[%emt 0:06:46]} Kh7 {[%emt 0:05:02]} 14. Kb1 {[%emt 0:31:04]} Rc8 {[%emt 0:02:36]} 15. Nd5 {[%emt 0:13:44]} Nc4 {[%emt 0:00:30]} 16. Qb4 {[%emt 0:09:02]} Nxe3 {[%emt 0:12:15]} 17. Nxe3 {[%emt 0:00:05]} Bxd4 {[%emt 0:06:08]} 18. Qxd4 {[%emt 0:03:26]} Qa5 {[%emt 0:05:58]} 19. Rg5 {[%emt 0:00:30]} Qc7 {[%emt 0:00:30]} 20. Bd3 {[%emt 0:08:09]} Nf4 {[%emt 0:05:42]} 21. Nd5 {[%emt 0:00:30]} Nxd5 {[%emt 0:00:30]} 22. exd5 {[%emt 0:00:30]} Qc5 {[%emt 0:00:30]} 23. Rh5+ {[%emt 0:00:30]} Kg8 {[%emt 0:00:30]} 24. Qh8# {[%emt 0:00:30]} 1-0

[Event "FIDE WCCC U8 2018"]
[Site "Santiago de Compostela"]
[Date "2018.11.04"]
[Round "1"]
[White "Nurgaliyev, Sauat"]
[Black "Samatthanan, Theerath"]
[Result "*"]
[ECO "B76"]
[WhiteElo "1764"]
[BlackElo "1133"]
[Annotator "NA RC"]
[PlyCount "38"]
[EventDate "2018.11.04"]
[EventType "swiss"]
[EventCountry "ESP"]
[SourceTitle "playchess.com"]
[Source "ChessBase"]
[SourceQuality "1"]
[TimeControl "40/5400+30:1800+30"]

1. e4 {[%emt 0:01:00]} c5 {[%emt 0:00:00]} 2. Nf3 {[%emt 0:00:17]} d6 {[%emt 0:00:01]} 3. d4 {[%emt 0:00:36]} cxd4 {[%emt 0:00:13]} 4. Nxd4 {[%emt 0:00:13]} Nf6 {[%emt 0:00:12]} 5. Nc3 {[%emt 0:00:05]} g6 {[%emt 0:00:17]} 6. f3 {[%emt 0:00:19]} Bg7 {[%emt 0:00:11]} 7. Be3 {[%emt 0:00:18]} O-O {[%emt 0:00:14]} 8. Qd2 {[%emt 0:00:04]} Nc6 {[%emt 0:00:11]} 9. O-O-O {[%emt 0:00:15]} Bd7 {[%emt 0:00:15]} 10. g4 {[%emt 0:00:43]} Ne5 {[%emt 0:00:34]} 11. h4 {[%emt 0:02:28]} h5 {[%emt 0:15:32]} 12. gxh5 {[%emt 0:00:30]} Nxh5 {[%emt 0:00:30]} 13. Rg1 {[%emt 0:06:46]} Kh7 {[%emt 0:05:02]} 14. Kb1 {[%emt 0:31:04]} Rc8 {[%emt 0:02:36]} 15. Nd5 {[%emt 0:13:44]} Nc4 {[%emt 0:00:30]} 16. Qb4 {[%emt 0:09:02]} Nxe3 {[%emt 0:12:15]} 17. Nxe3 {[%emt 0:00:05]} Bxd4 {[%emt 0:06:08]} 18. Qxd4 {[%emt 0:03:26]} Qc7 {[%emt 0:10:14]} 19. Bd3 {[%emt 0:05:34]} Nf4 {[%emt 0:00:30]} *

[Event "FIDE WCCC U8 2018"]
[Site "Santiago de Compostela"]
[Date "2018.11.04"]
[Round "1"]
[White "Schnaider, Ilan"]
[Black "Munoz Goncalves, Miguel"]
[Result "1-0"]
[ECO "B40"]
[WhiteElo "1723"]
[BlackElo "1119"]
[Annotator "NA"]
[PlyCount "67"]
[EventDate "2018.11.04"]
[EventType "swiss"]
[EventCountry "ESP"]
[SourceTitle "playchess.com"]
[Source "ChessBase"]
[SourceQuality "1"]
[TimeControl "40/5400+30:1800+30"]

1. e4 {[%emt 0:03:37]} c5 {[%emt 0:00:00]} 2. Nf3 {[%emt 0:00:37]} e6 {[%emt 0:00:08]} 3. d4 {[%emt 0:00:27]} cxd4 {[%emt 0:00:25]} 4. Nxd4 {[%emt 0:01:11]} Nf6 {[%emt 0:00:22]} 5. Nc3 {[%emt 0:00:33]} Nc6 {[%emt 0:00:20]} 6. Be3 {[%emt 0:01:18]} Bb4 {[%emt 0:01:20]} 7. f3 {[%emt 0:02:34]} d5 {[%emt 0:01:03]} 8. Nxc6 {[%emt 0:05:00]} bxc6 {[%emt 0:03:12]} 9. a3 {[%emt 0:10:51]} Bxc3+ {[%emt 0:03:05]} 10. bxc3 {[%emt 0:00:30]} dxe4 {[%emt 0:00:23]} 11. Qe2 {[%emt 0:01:07]} exf3 {[%emt 0:02:34]} 12. Qxf3 {[%emt 0:01:02]} Bb7 {[%emt 0:00:54]} 13. Rb1 {[%emt 0:01:30]} Qc8 {[%emt 0:00:50]} 14. Bd3 {[%emt 0:01:38]} Rb8 {[%emt 0:19:46]} 15. Bxa7 {[%emt 0:09:25]} c5 {[%emt 0:03:10]} 16. Qg3 {[%emt 0:00:41]} Ra8 {[%emt 0:01:32]} 17. Bb5+ {[%emt 0:03:05]} Ke7 {[%emt 0:04:44]} 18. Rd1 {[%emt 0:01:18]} Rd8 {[%emt 0:02:22]} 19. Rxd8 {[%emt 0:00:59]} Kxd8 {[%emt 0:06:23]} 20. Qd6+ {[%emt 0:00:33]} Nd7 {[%emt 0:00:53]} 21. Bb6+ {[%emt 0:00:40]} Ke8 {[%emt 0:00:50]} 22. Bxc5 {[%emt 0:00:42]} Kd8 {[%emt 0:00:55]} 23. Rf1 {[%emt 0:05:28]} f6 {[%emt 0:00:52]} 24. Qe7+ {[%emt 0:09:43]} Kc7 {[%emt 0:00:47]} 25. Bxd7 {[%emt 0:01:20]} Qxd7 {[%emt 0:01:13]} 26. Bb6+ {[%emt 0:00:13]} Kxb6 {[%emt 0:05:25]} 27. Qxd7 {[%emt 0:00:18]} Bc6 {[%emt 0:00:34]} 28. Qxg7 {[%emt 0:00:36]} Rxa3 {[%emt 0:00:52]} 29. Qxf6 {[%emt 0:01:24]} Ra1+ {[%emt 0:00:27]} 30. Kf2 {[%emt 0:00:19]} Ra2 {[%emt 0:00:33]} 31. Qd8+ {[%emt 0:00:57]} Kc5 {[%emt 0:00:24]} 32. Qd4+ {[%emt 0:00:19]} Kb5 {[%emt 0:00:26]} 33. Rb1+ {[%emt 0:00:13]} Ka5 {[%emt 0:00:47]} 34. Qa7# {[%emt 0:00:26]} 1-0

[Event "FIDE WCCC U8 2018"]
[Site "Santiago de Compostela"]
[Date "2018.11.04"]
[Round "1"]
[White "Lu, Miaoyi"]
[Black "McKoy, Aaron"]
[Result "1-0"]
[ECO "A50"]
[WhiteElo "1717"]
[BlackElo "1116"]
[Annotator "NA RC"]
[PlyCount "75"]
[EventDate "2018.11.04"]
[EventType "swiss"]
[EventCountry "ESP"]
[SourceTitle "playchess.com"]
[Source "ChessBase"]
[SourceQuality "1"]
[TimeControl "40/5400+30:1800+30"]

1. d4 Nf6 2. c4 Nc6 3. Nf3 d5 4. cxd5 Qxd5 5. Nc3 Qd8 6. d5 Nb4 7. Qa4+ c6 8. Qxb4 e5 9. Qa4 Qb6 10. Nxe5 Bc5 11. Nd3 Ng4 12. Nxc5 Qxc5 13. Qe4+ Kf8 14. Be3 Nxe3 15. Qxe3 Qb4 16. O-O-O a5 17. dxc6 Be6 18. a3 Qb3 19. Qc5+ Kg8 20. c7 h6 21. Qb5 a4 22. Qxb3 axb3 23. Nd5 Kf8 24. Nb6 Re8 25. e3 Kg8 26. Rd8 Rxd8 27. cxd8=Q+ Kh7 28. Bd3+ g6 29. Qc7 Rg8 30. Qxb7 Rg7 31. Nd7 h5 32. Nf6+ Kh6 33. Qb8 Bf5 34. Qh8+ Kg5 35. Qxg7 Bxd3 36. e4 h4 37. g3 h3 38. f4# 1-0

[Event "FIDE WCCC U8 2018"]
[Site "Santiago de Compostela"]
[Date "2018.11.04"]
[Round "1"]
[White "Udipi, Kala Kishan"]
[Black "Rey Martinez, Jaime"]
[Result "1-0"]
[ECO "D02"]
[WhiteElo "1653"]
[BlackElo "1095"]
[Annotator "NA"]
[PlyCount "89"]
[EventDate "2018.11.04"]
[EventType "swiss"]
[EventCountry "ESP"]
[SourceTitle "playchess.com"]
[Source "ChessBase"]
[SourceQuality "1"]
[TimeControl "40/5400+30:1800+30"]

1. d4 {[%emt 0:00:00]} d5 {[%emt 0:00:00]} 2. Nf3 {[%emt 0:00:00]} Nc6 {[%emt 0:00:30]} 3. c4 {[%emt 0:02:09]} Nf6 {[%emt 0:02:29]} 4. Nc3 {[%emt 0:01:19]} Bg4 {[%emt 0:00:30]} 5. e3 {[%emt 0:00:31]} e6 {[%emt 0:00:30]} 6. h3 {[%emt 0:01:01]} Bh5 {[%emt 0:01:31]} 7. Be2 {[%emt 0:03:31]} dxc4 {[%emt 0:02:29]} 8. Bxc4 {[%emt 0:00:09]} Bd6 {[%emt 0:00:31]} 9. O-O {[%emt 0:00:23]} e5 {[%emt 0:00:56]} 10. Be2 {[%emt 0:09:24]} Qe7 {[%emt 0:02:58]} 11. d5 {[%emt 0:02:06]} Nd8 {[%emt 0:01:36]} 12. e4 {[%emt 0:06:12]} Bb4 {[%emt 0:01:23]} 13. Qc2 {[%emt 0:04:41]} Bg6 {[%emt 0:02:05]} 14. Bd3 {[%emt 0:01:12]} h5 {[%emt 0:03:06]} 15. Bg5 {[%emt 0:00:39]} Rg8 {[%emt 0:01:06]} 16. a3 {[%emt 0:00:23]} Bd6 {[%emt 0:00:52]} 17. Rac1 {[%emt 0:01:18]} a6 {[%emt 0:02:30]} 18. b4 {[%emt 0:02:12]} b5 {[%emt 0:01:30]} 19. Rfe1 {[%emt 0:00:20]} Qd7 {[%emt 0:00:42]} 20. Qe2 {[%emt 0:01:35]} Rb8 {[%emt 0:00:51]} 21. Rc2 {[%emt 0:05:43]} Nh7 {[%emt 0:01:03]} 22. Be3 {[%emt 0:04:43]} f6 {[%emt 0:04:25]} 23. Nh4 {[%emt 0:03:08]} Bf7 {[%emt 0:00:27]} 24. Nf5 {[%emt 0:00:30]} g6 {[%emt 0:01:30]} 25. Nh6 {[%emt 0:00:42]} Rg7 {[%emt 0:00:39]} 26. Rec1 {[%emt 0:03:41]} Kf8 {[%emt 0:00:33]} 27. Bc5 {[%emt 0:03:07]} Be8 {[%emt 0:00:58]} 28. Bxd6+ {[%emt 0:02:07]} cxd6 {[%emt 0:00:24]} 29. Nd1 {[%emt 0:01:08]} Rb7 {[%emt 0:00:35]} 30. Ne3 {[%emt 0:00:59]} Ke7 {[%emt 0:01:23]} 31. Rc6 {[%emt 0:04:04]} Nxc6 {[%emt 0:01:09]} 32. dxc6 {[%emt 0:00:32]} Qc7 {[%emt 0:00:18]} 33. Nd5+ {[%emt 0:00:09]} Kd8 {[%emt 0:00:15]} 34. Nxc7 {[%emt 0:00:07]} Rbxc7 {[%emt 0:00:09]} 35. Qe3 {[%emt 0:00:51]} Bxc6 {[%emt 0:03:00]} 36. Qb6 {[%emt 0:01:13]} Kd7 {[%emt 0:00:13]} 37. Qxa6 {[%emt 0:00:35]} Nf8 {[%emt 0:00:59]} 38. Rxc6 {[%emt 0:00:55]} Rxc6 {[%emt 0:00:15]} 39. Bxb5 {[%emt 0:00:09]} Re7 {[%emt 0:00:32]} 40. Qxc6+ {[%emt 0:00:00]} Kd8 {[%emt 0:00:00]} 41. Qxd6+ {[%emt 0:00:45]} Nd7 {[%emt 0:00:26]} 42. Ng8 {[%emt 0:00:26]} Rf7 {[%emt 0:00:26]} 43. Nxf6 {[%emt 0:00:12]} Re7 {[%emt 0:00:13]} 44. Nxd7 {[%emt 0:00:13]} Kc8 {[%emt 0:00:11]} 45. Qb8# {[%emt 0:00:13]} 1-0

[Event "FIDE WCCC U8 2018"]
[Site "Santiago de Compostela"]
[Date "2018.11.04"]
[Round "1"]
[White "Yuruultei Batbaatar"]
[Black "Begmuratov, Khumoyun"]
[Result "0-1"]
[ECO "E91"]
[WhiteElo "1135"]
[BlackElo "1880"]
[Annotator "NA RC"]
[PlyCount "144"]
[EventDate "2018.11.04"]
[EventType "swiss"]
[EventCountry "ESP"]
[SourceTitle "playchess.com"]
[Source "ChessBase"]
[SourceQuality "1"]
[TimeControl "40/5400+30:1800+30"]

{[%evp 15,144,15,32767,32767,23,29,31,32767,32767,33,32767,32767,32,0,32767,-5,0,0,8,-10,-20,32767,-9,-66,32767,32767,0,32767,32767,32767,32767,32767,32767,32767,32767,16,32767,-21,32767,-4,0,-60,12,-49,13,-41,31,12,30,0,30,0,24,24,32767,0,18,16,16,0,0,0,21,26,51,29,35,18,17,33,27,27,16,0,36,23,30,23,27,11,25,21,17,35,55,35,39,39,81,-513,-488,-483,-622,-554,-550,-631,-639,-602,-519,-543,-569,-580,-456,-578,-685,-858,-521,-605,-638,-662,-665,-635,-689,-12842,-802,-689,-775,-6640,-29977,-12837,-29979,-29978,-29982,-29981,-29984,-29983,-29985,-29985,-29985,-29986,-29987]} 1. d4 {[%emt 0:00:00]} Nf6 {[%emt 0:00:00]} 2. c4 {[%emt 0:00:00]} g6 {[%emt 0:01:38]} 3. Nc3 {[%emt 0:00:52]} Bg7 {[%emt 0:00:15]} 4. e4 {[%emt 0:00:36]} d6 {[%emt 0:00:19]} 5. Nf3 {[%emt 0:01:00]} O-O {[%emt 0:00:21]} 6. Be2 {[%emt 0:00:16]} Nbd7 {[%emt 0:01:28]} 7. O-O {[%emt 0:00:37]} c6 {[%emt 0:03:34]} 8. Bf4 {[%emt 0:00:28] E91: King's Indian: Classical: 6 Be2, unusual replies including 6...c5 and 6...Bg4} (8. Be3 e5 9. d5 c5 10. Bg5 h6 11. Bd2 Ne8 12. Qc1 Kh7 13. g3 Ndf6 14. Nh4 Bd7 15. a3 Ng8 16. b4 Ne7 17. Rb1 b6 {1-0 (43) Can,E (2561)-Onischuk,V (2601) Budapest 2017}) 8... Qa5 {[%emt 0:05:15]} 9. a3 $146 {[%emt 0:06:58]} ({Predecessor:} 9. Qd2 e5 10. dxe5 dxe5 11. Bh6 Nc5 12. Bxg7 Kxg7 13. Qc2 Ne6 14. Rfd1 {0-1 (42) Gutgesell,W (1825)-Hahn,R (1775) Schloss Schney 1992}) 9... e5 {[%emt 0:17:30]} 10. b4 {[%emt 0:08:27]} Qc7 {[%emt 0:00:07]} 11. dxe5 {[%emt 0:00:53]} dxe5 {[%emt 0:00:25]} 12. Be3 {[%emt 0:03:26]} Rd8 {[%emt 0:03:28]} 13. Qc2 {[%emt 0:06:20]} Nf8 {[%emt 0:11:33]} 14. c5 {[%emt 0:03:02]} Bg4 {[%emt 0:06:41]} 15. Nd2 {[%emt 0:04:37]} Bxe2 {[%emt 0:08:48]} 16. Nxe2 {[%emt 0:00:11]} Ne6 {[%emt 0:06:46]} 17. Nf3 {[%emt 0:04:32]} Rd7 {[%emt 0:05:11]} 18. Ng3 {[%emt 0:08:16]} Ng4 {[%emt 0:01:45]} 19. Rfd1 {[%emt 0:01:48]} Nd4 {[%emt 0:01:44]} 20. Bxd4 {[%emt 0:00:58]} exd4 {[%emt 0:00:15]} 21. Rd3 {[%emt 0:01:00]} Ne5 {[%emt 0:01:25]} 22. Nxe5 {[%emt 0:01:12]} Qxe5 {[%emt 0:00:10]} 23. Rad1 {[%emt 0:01:19]} Re8 {[%emt 0:02:16]} 24. Qc4 {[%emt 0:00:49]} Qg5 {[%emt 0:01:18]} 25. f3 {[%emt 0:02:17]} Qe5 {[%emt 0:02:48]} 26. Ne2 {[%emt 0:02:08]} Red8 {[%emt 0:00:03]} 27. a4 {[%emt 0:02:23]} a6 {[%emt 0:00:35]} 28. Qb3 {[%emt 0:10:46]} ({Better is} 28. Kh1 $11) 28... Kh8 {[%emt 0:00:16]} (28... a5 $15) 29. Ng3 {[%emt 0:02:31]} f5 {[%emt 0:04:38]} (29... a5 $1 $15) 30. Qb2 {[%emt 0:00:46] [#]} f4 {[%emt 0:00:47]} ({Better is} 30... a5 $1 $15 {[%mdl 512]}) 31. Ne2 {[%emt 0:02:13]} g5 {[%emt 0:00:05]} 32. Qd2 {[%emt 0:00:18]} Qe6 {[%emt 0:01:52]} (32... a5 $5) 33. Qc1 {[%emt 0:01:13]} Qa2 {[%emt 0:01:42]} 34. a5 {[%emt 0:07:57]} Be5 {[%emt 0:01:37]} 35. R1d2 {[%emt 0:00:43]} Qe6 {[%emt 0:00:18]} 36. h3 {[%emt 0:03:54]} h5 {[%emt 0:01:29]} 37. Kf2 {[%emt 0:01:06]} Bg7 {[%emt 0:01:47]} 38. Qb1 {[%emt 0:01:34]} Qc4 {[%emt 0:00:52]} 39. Nc1 {[%emt 0:02:15]} Qe6 {[%emt 0:00:57]} 40. Qb3 {[%emt 0:00:00]} Qe5 {[%emt 0:00:00]} 41. Rd1 {[%emt 0:02:09]} Bf6 {[%emt 0:01:06]} 42. R3d2 {[%emt 0:03:27]} Qe7 {[%emt 0:03:06]} 43. Nd3 {[%emt 0:01:16]} Be5 {[%emt 0:00:57]} 44. Nb2 {[%emt 0:03:05]} Qf6 {[%emt 0:01:43]} (44... g4 $5) 45. Nc4 {[%emt 0:01:36]} Qe6 {[%emt 0:02:39]} 46. Qc2 {[%emt 0:01:47]} Qf6 {[%emt 0:00:40]} 47. Kg1 {[%emt 0:06:01]} Bc7 {[%emt 0:01:47]} 48. Qb2 {[%emt 0:01:31]} Be5 {[%emt 0:01:09]} 49. Kf1 {[%emt 0:00:43]} Kh7 {[%emt 0:03:28]} 50. Qc2 {[%emt 0:04:07]} Kh8 {[%emt 0:00:53]} 51. Nd6 {[%emt 0:03:19]} Qe6 {[%emt 0:00:40]} ({Much worse is} 51... Bxd6 $6 52. Rxd4 g4 53. hxg4 $16 (53. Rxd6 Rxd6 54. cxd6 gxf3 $11) (53. cxd6 gxf3 54. gxf3 Rxd6 $11) (53. fxg4 hxg4 54. hxg4 f3 $16)) 52. Qc4 $2 {[%emt 0:00:32]} (52. Nf5 $16) 52... Rxd6 $1 {[%emt 0:00:06]} 53. Qxe6 {[%emt 0:01:26]} Rxe6 {[%emt 0:00:05]} 54. Ke2 {[%emt 0:01:33]} Rg6 {[%emt 0:00:08]} 55. Rh1 {[%emt 0:00:55]} Kg7 {[%emt 0:00:21]} 56. Kd3 {[%emt 0:00:53]} g4 {[%emt 0:00:11]} 57. hxg4 {[%emt 0:04:33]} hxg4 {[%emt 0:00:26]} 58. Rh5 {[%emt 0:00:43]} Bc7 {[%emt 0:01:36]} 59. e5 {[%emt 0:01:41]} Rd5 {[%emt 0:01:21]} 60. Re2 {[%emt 0:02:01]} Re6 {[%emt 0:00:16]} 61. Rg5+ {[%emt 0:00:50]} Kh6 {[%emt 0:00:56]} 62. Rxg4 {[%emt 0:01:11]} Rdxe5 {[%emt 0:00:32]} 63. Rxe5 {[%emt 0:01:36]} Rxe5 {[%emt 0:00:39]} 64. Kxd4 {[%emt 0:01:36]} Rg5 {[%emt 0:00:04]} (64... Re3 $142 65. Rxf4 Bxf4) 65. Rh4+ {[%emt 0:01:17]} Kg6 {[%emt 0:00:04]} 66. Rh2 {[%emt 0:00:19]} Rh5 {[%emt 0:00:12]} 67. Rxh5 {[%emt 0:01:21]} Kxh5 {[%emt 0:00:07]} 68. Kd3 {[%emt 0:00:21]} Kh4 69. Ke2 {[%emt 0:00:50]} Kg3 {[%emt 0:00:11]} 70. Kf1 {[%emt 0:00:21]} Be5 {[%emt 0:00:14]} 71. Kg1 {[%emt 0:00:31]} Bc3 {[%emt 0:00:06]} 72. Kh1 {[%emt 0:00:43]} Bxb4 {[%emt 0:00:05]} 0-1

[Event "FIDE WCCC U8 2018"]
[Site "Santiago de Compostela"]
[Date "2018.11.04"]
[Round "1"]
[White "Chomicki, Kornel"]
[Black "Hajdu, Marton Abris"]
[Result "0-1"]
[ECO "B23"]
[WhiteElo "1122"]
[BlackElo "1755"]
[Annotator "NA RC"]
[PlyCount "74"]
[EventDate "2018.11.04"]
[EventType "swiss"]
[EventCountry "ESP"]
[SourceTitle "playchess.com"]
[Source "ChessBase"]
[SourceQuality "1"]
[TimeControl "40/5400+30:1800+30"]

1. e4 {[%emt 0:00:00]} c5 {[%emt 0:00:00]} 2. Nc3 {[%emt 0:00:13]} Nc6 {[%emt 0:00:15]} 3. f4 {[%emt 0:01:25]} g6 {[%emt 0:00:30]} 4. d3 {[%emt 0:00:51]} Bg7 {[%emt 0:00:26]} 5. Nge2 {[%emt 0:01:45]} e6 {[%emt 0:01:30]} 6. Be3 {[%emt 0:00:18]} d6 {[%emt 0:00:36]} 7. Qd2 {[%emt 0:00:33]} Nd4 {[%emt 0:00:15]} 8. Bf2 {[%emt 0:01:57]} Ne7 {[%emt 0:02:03]} 9. Nxd4 {[%emt 0:00:44]} cxd4 {[%emt 0:00:13]} 10. Ne2 {[%emt 0:00:10]} Nc6 {[%emt 0:01:09]} 11. g4 {[%emt 0:00:19]} Qb6 {[%emt 0:02:14]} 12. Rb1 {[%emt 0:02:48]} h5 {[%emt 0:01:46]} 13. g5 {[%emt 0:00:21]} e5 {[%emt 0:04:33]} 14. Bg3 {[%emt 0:01:53]} Be6 {[%emt 0:05:23]} 15. b3 {[%emt 0:00:34]} Bg4 {[%emt 0:00:49]} 16. h4 {[%emt 0:01:49]} Bf3 {[%emt 0:03:01]} 17. Rh2 {[%emt 0:00:36]} Bg4 {[%emt 0:00:34]} 18. Rf2 {[%emt 0:02:46]} Rc8 {[%emt 0:01:28]} 19. Ng1 {[%emt 0:02:06]} Nb4 {[%emt 0:02:49]} 20. Rb2 {[%emt 0:00:34]} O-O {[%emt 0:06:02]} 21. Bh3 {[%emt 0:00:31]} Bxh3 {[%emt 0:00:41]} 22. Nxh3 {[%emt 0:01:09]} Rc3 {[%emt 0:03:30]} 23. a3 {[%emt 0:01:50]} Qa6 {[%emt 0:08:15]} 24. a4 {[%emt 0:00:45]} Rfc8 {[%emt 0:02:40]} 25. Qd1 {[%emt 0:00:31]} Qc6 {[%emt 0:02:02]} 26. fxe5 {[%emt 0:00:38]} dxe5 {[%emt 0:00:17]} 27. Qf3 {[%emt 0:00:24]} Qd7 {[%emt 0:00:43]} 28. Qg2 {[%emt 0:00:23]} Qc7 {[%emt 0:02:45]} 29. Kd1 {[%emt 0:01:11]} Qe7 {[%emt 0:06:24]} 30. Qh2 {[%emt 0:03:32]} Nc6 {[%emt 0:01:27]} 31. Ng1 {[%emt 0:00:34]} Qa3 {[%emt 0:00:26]} 32. Rb1 {[%emt 0:00:52]} Nb4 {[%emt 0:02:33]} 33. Rc1 {[%emt 0:00:27]} Nxd3 {[%emt 0:01:00]} 34. Rb1 {[%emt 0:02:34]} Qa2 {[%emt 0:00:45]} 35. cxd3 {[%emt 0:01:10]} Qxb1+ {[%emt 0:00:10]} 36. Ke2 {[%emt 0:00:28]} Qxd3+ {[%emt 0:00:18]} 37. Ke1 {[%emt 0:00:16]} Rc1# {[%emt 0:00:08]} 0-1